bitfinex/quotes_ETHUSD_20251127
["timestamp","ask_amount","ask_price","bid_price","bid_amount"]
[1764211930018,0.30595865,3050.9,3050.6,0.001]
[1764211930302,0.6695,3051.4,3050.6,0.001]
[1764211930510,0.30590028,3051.3,3050.6,0.001]
[1764211930711,0.4822,3050.7,3050.6,0.001]
[1764211930867,0.4555,3051.3,3050.6,0.001]
[1764211931068,0.70055249,3051.2,3050.6,0.001]
[1764211931298,0.30588407,3051.1,3050.6,0.001]
[1764211931501,0.30588407,3051.0,3050.6,0.001]
[1764211931810,1.12809411,3051.5,3050.6,0.001]
[1764211931811,0.30588407,3050.9,3050.6,0.001]
[1764211931984,0.4555,3051.4,3050.6,0.001]
[1764211932183,0.30584665,3051.3,3050.6,0.001]
[1764211932391,0.30584665,3051.2,3050.6,0.001]
[1764211932602,0.4555,3051.4,3050.6,0.001]
[1764211932603,0.30584665,3051.1,3050.6,0.001]
[1764211932881,0.1885,3051.5,3050.7,3.806]
[1764211933083,0.1885,3051.5,3050.8,3.806]
[1764211933084,0.30580476,3051.4,3050.8,3.806]
[1764211933394,0.1885,3051.5,3050.8,3.806]
[1764211933395,0.30580476,3051.3,3050.8,3.806]
[1764211933612,0.30580476,3051.3,3050.6,0.65673022]
[1764211933613,0.3058309,3051.2,3050.9,3.806]
[1764211933922,0.1885,3051.5,3050.9,3.806]
[1764211934087,0.30583648,3051.4,3050.9,10.36142184]
[1764211934282,0.30583648,3051.3,3050.9,11.39756402]
[1764211934503,0.214,3051.7,3050.9,11.88646402]
[1764211934706,0.30586015,3051.6,3051.0,3.806]
[1764211934912,0.30586015,3051.5,3051.0,3.806]
[1764211935211,0.30586015,3051.4,3051.1,0.1889]
[1764211935419,0.1885,3051.8,3051.1,0.1889]
[1764211935420,0.30583611,3051.3,3051.1,0.1889]
[1764211935718,0.1885,3051.8,3051.2,6.5547981]
[1764211935925,0.30585382,3051.7,3051.2,0.4715]
[1764211936091,0.1885,3051.8,3051.1,4.14080295]
[1764211936092,0.76135382,3051.6,3051.1,3.27747077]
[1764211936284,0.30585382,3051.5,3051.1,6.64937724]
[1764211936483,0.1885,3051.9,3051.1,10.00617772]
[1764211936680,0.30582534,3051.8,3051.5,3.35680048]
[1764211936910,0.4555,3052.3,3051.2,2.47800188]
[1764211937116,0.30587325,3052.2,3051.2,1.77510188]
[1764211937318,0.30587325,3052.1,3051.3,1.19952796]
[1764211937610,0.30587325,3052.0,3051.1,6.86337724]
[1764211937819,0.30587325,3051.9,3051.1,6.86337724]
[1764211937993,0.4555,3052.4,3051.2,0.4889]
[1764211938192,0.76140592,3052.3,3051.1,6.94267125]
[1764211938382,0.30589596,3052.2,3051.1,6.86337724]
[1764211938734,0.30589596,3052.1,3051.2,0.4889]
[1764211939036,0.30589596,3052.0,3051.2,0.4889]
[1764211939229,0.4555,3052.2,3051.2,0.4889]
[1764211939518,0.30590979,3052.1,3051.2,0.4889]
[1764211939727,0.30590979,3052.0,3051.2,0.4889]
[1764211939901,0.4555,3052.2,3051.3,8.02187547]
[1764211940084,0.4555,3052.5,3051.6,3.35680048]
[1764211940290,0.4555,3052.5,3051.5,0.214]
[1764211940291,0.30591224,3052.4,3051.5,0.214]
[1764211940492,0.30591224,3052.3,3051.5,0.214]
[1764211940696,0.30591224,3052.2,3051.5,1.08647755]
[1764211941012,0.002,3052.8,3051.6,0.4889]
[1764211941013,0.4555,3052.7,3051.6,0.4889]
[1764211941204,0.30589912,3052.6,3051.6,0.4889]
[1764211941408,0.30589912,3052.5,3051.6,0.4889]
[1764211941608,0.30589912,3052.4,3051.6,0.4889]
[1764211941805,0.4555,3052.7,3051.7,6.55372414]
[1764211942004,0.30589139,3052.6,3051.8,0.70426241]
[1764211942213,0.30589139,3052.5,3051.8,1.19316241]
[1764211942413,0.002,3052.8,3052.0,3.35680048]
[1764211942747,0.405504,3051.8,3050.6,0.001]
[1764211943032,0.4822,3050.7,3050.6,0.001]
[1764211943312,0.78804069,3050.7,3050.6,0.001]
[1764211943514,1.24354069,3050.7,3050.6,0.001]
[1764211943906,5.24707101,3050.7,3050.6,0.001]
[1764211944689,1.9691348,3050.7,3050.6,0.001]
[1764211945507,5.24707101,3050.7,3050.6,0.001]
[1764211946394,0.72559411,3051.0,3050.6,0.001]
[1764211946591,0.4555,3051.2,3050.6,0.001]
[1764211946931,0.94159411,3051.4,3050.3,3.16965285]
[1764211947104,0.30528379,3051.3,3050.4,0.31696528]
[1764211948422,0.405504,3052.0,3050.4,0.31696528]
[1764211948423,0.4555,3051.8,3050.7,3.16965285]
[1764211948726,0.30528839,3051.7,3050.7,3.38465285]
[1764211948940,0.30528839,3051.7,3050.7,3.67375285]
[1764211949098,0.30528839,3051.7,3050.8,0.36737529]
[1764211949501,0.4555,3051.6,3050.8,0.36737529]
[1764211949796,0.4555,3051.6,3050.7,0.215]
[1764211949997,0.4555,3051.6,3050.5,3.27815112]
[1764211950198,0.4555,3051.6,3050.5,3.67375285]
[1764211950394,1.18109411,3051.8,3050.9,3.16965285]
[1764211950603,0.30531837,3051.7,3050.9,3.16965285]
[1764211950804,0.30531837,3051.7,3050.9,3.48661813]
[1764211951527,0.4822,3051.0,3050.0,0.2891]
[1764211952031,0.4822,3051.0,3050.2,3.16965285]
[1764211952244,0.4555,3051.5,3050.2,3.16965285]
[1764211952442,3.58241239,3051.4,3050.3,3.27836606]
[1764211952613,0.30518323,3051.3,3050.4,0.215]
[1764211952820,0.30518323,3051.3,3050.5,0.215]
[1764211953542,0.76068323,3051.3,3050.5,0.215]
[1764211953751,0.4555,3051.3,3050.3,7.20153401]
[1764211953908,0.4555,3051.3,3050.6,0.215]
[1764211954610,0.4555,3051.3,3050.7,3.27793621]
[1764211955737,4.10607282,3051.3,3050.7,3.27793621]
[1764211956033,0.4555,3051.7,3050.8,3.16965285]
[1764211956238,0.30531188,3051.6,3050.8,3.16965285]
[1764211956444,0.30531188,3051.5,3050.8,3.16965285]
[1764211956611,0.30531188,3051.4,3050.9,3.27772132]
[1764211956934,0.30531188,3051.3,3050.9,3.27772132]
[1764211957240,3.73247195,3051.6,3050.9,3.49272132]
[1764211957422,0.76079496,3051.5,3050.9,3.49272132]
[1764211957628,0.30529496,3051.4,3050.9,0.215]
[1764211957813,0.30529496,3051.3,3050.9,0.215]
[1764211958013,0.72559411,3051.8,3050.9,0.89206099]
[1764211958217,0.76085632,3051.7,3050.9,0.215]
[1764211958436,0.30535632,3051.6,3050.9,0.215]
[1764211958738,0.4555,3051.7,3051.0,3.27761389]
[1764211958739,0.30535632,3051.5,3051.0,3.27761389]
[1764211959037,0.30535632,3051.4,3051.1,0.34926139]
[1764211959248,0.4555,3051.7,3051.1,0.34926139]
[1764211959535,0.30542909,3051.6,3050.9,6.77042239]
[1764211959911,0.30542909,3051.5,3050.7,3.16965285]
[1764211960126,0.30541175,3051.4,3050.8,0.215]
[1764211960430,3.76293872,3051.8,3050.8,0.215]
[1764211960638,0.7915211,3051.7,3050.9,6.55544264]
[1764211960811,0.3054211,3051.6,3050.9,7.57836219]
[1764211961435,0.3054211,3051.6,3050.9,7.79336219]
[1764211962010,0.1885,3051.9,3050.9,8.08246219]
[1764211962204,0.30550471,3051.8,3051.0,0.2891]
[1764211962411,0.30550471,3051.7,3051.1,3.97789907]
[1764211962611,0.1885,3051.9,3051.2,6.5547981]
[1764211962811,0.002,3051.4,3051.3,0.215]
[1764211963312,0.002,3051.4,3051.3,0.7932]
[1764211963518,0.002,3051.4,3051.3,1.92578972]
[1764211964016,0.002,3051.4,3051.3,1.71078972]
[1764211964219,0.002,3051.4,3051.3,1.92578972]
[1764211964444,0.002,3051.4,3051.3,1.42168972]
[1764211964648,0.002,3051.4,3051.3,4.91398136]
[1764211965845,0.002,3051.4,3051.3,5.20208136]
[1764211967856,0.002,3051.4,3051.3,4.98808136]
[1764211968149,0.002,3051.4,3051.3,4.91298136]
[1764211968714,0.002,3051.4,3051.3,8.37173421]
[1764211970016,0.002,3051.4,3051.3,8.15773421]
[1764211970220,0.002,3051.4,3051.3,8.37173421]
[1764211970917,0.002,3051.4,3051.3,4.62388136]
[1764211971124,0.002,3051.4,3051.3,3.49129164]
[1764211971738,0.002,3051.4,3051.3,3.78039164]
[1764211972115,0.002,3051.4,3051.3,3.27729164]
[1764211972319,0.002,3051.4,3051.3,3.49329164]
[1764211973113,0.002,3051.4,3051.3,3.78239164]
[1764211973356,0.002,3051.4,3051.3,7.94712356]
[1764211974238,0.002,3051.4,3051.3,8.67271767]
[1764211974545,0.002,3051.4,3051.3,12.47871767]
[1764211978131,0.002,3051.8,3051.4,4.93709811]
[1764211978332,0.002,3051.8,3051.7,4.18434696]
[1764211978554,0.002,3051.8,3051.7,15.10278166]
[1764211978850,0.002,3051.8,3051.2,3.27739905]
[1764211978851,3.454,3051.7,3050.2,2.00773445]
[1764211979051,3.454,3051.7,3048.3,0.2911]
[1764211979052,0.469,3050.2,3049.5,3.2792261]
[1764211979254,0.469,3050.2,3049.5,7.10247481]
[1764211979438,0.9551,3050.2,3049.5,10.27212766]
[1764211979641,0.9551,3050.2,3049.5,10.05612766]
[1764211980251,0.9551,3050.2,3049.6,0.216]
[1764211980962,0.4861,3050.1,3049.7,0.216]
[1764211981259,0.4861,3050.1,3049.5,0.002]
[1764211981456,0.4861,3050.1,3049.5,3.28121711]
[1764211981654,0.4861,3050.1,3049.5,6.56044321]
[1764211981852,0.1921,3050.3,3049.5,10.40784038]
[1764211982256,0.6782,3050.3,3049.5,10.40784038]
[1764211982431,0.4861,3050.2,3049.5,10.40784038]
[1764211983932,0.4861,3050.2,3049.5,6.45086996]
[1764211984129,0.4861,3050.2,3049.6,0.216]
[1764211984459,0.1921,3050.3,3049.8,3.16965285]
[1764211984855,0.6782,3050.3,3049.8,3.16965285]
[1764211985034,0.6782,3050.3,3049.5,6.56044321]
[1764211985361,0.6782,3050.3,3049.7,6.5580221]
[1764211985753,0.6782,3050.3,3049.8,0.215]
[1764211986059,0.1921,3050.3,3049.8,0.215]
[1764211986859,0.4861,3050.6,3049.8,3.38465285]
[1764211987466,0.4861,3050.6,3049.9,6.55759204]
[1764211987959,0.4861,3050.6,3049.9,7.55181653]
[1764211988165,0.4861,3050.9,3050.3,3.16965285]
[1764211988334,0.4861,3050.9,3050.3,3.38465285]
[1764211988536,0.4861,3050.9,3050.3,0.215]
[1764211988731,0.4861,3051.3,3050.3,3.38665285]
[1764211989043,0.4861,3050.9,3050.4,0.34834529]
[1764211989239,0.4861,3050.9,3050.5,0.215]
[1764211989441,0.002,3051.4,3050.6,6.55608732]
[1764211989644,0.457,3050.6,3050.5,3.27812036]
[1764211989831,0.457,3050.6,3050.5,3.49312036]
[1764211990039,0.4642,3050.9,3050.5,6.77127148]
[1764211990234,0.4741,3051.2,3050.5,6.77127148]
[1764211990434,0.1421,3051.0,3050.5,6.77127148]
[1764211990630,0.6162,3051.0,3050.5,6.77127148]
[1764211990930,0.1421,3051.0,3050.5,7.43865504]
[1764211991130,0.4741,3051.3,3050.5,7.43865504]
[1764211992766,0.4741,3051.3,3050.5,4.11050392]
[1764211992965,0.4741,3051.3,3050.5,6.72127148]
[1764211993360,0.4741,3051.3,3050.6,0.215]
[1764211993563,0.4741,3051.3,3050.3,6.55873212]
[1764211993766,0.6318,3050.4,3050.3,0.002]
[1764211994266,1.1059,3050.4,3050.3,0.002]
[1764211997262,4.38415858,3050.4,3050.3,0.002]
[1764211997465,4.78841115,3050.4,3050.3,0.002]
[1764211997776,0.72559411,3050.3,3049.4,0.001]
[1764211997966,0.6318,3049.5,3049.4,0.001]
[1764211998468,1.1059,3049.5,3049.4,0.001]
[1764211998668,0.1808,3049.5,3049.4,0.003]
[1764211998890,0.1808,3049.7,3049.4,0.003]
[1764211999042,0.4741,3050.2,3049.4,0.001]
[1764211999242,0.1808,3050.4,3049.4,0.001]
[1764211999243,0.451,3049.5,3049.4,0.001]
[1764211999583,0.4741,3050.3,3049.4,0.001]
[1764211999767,0.4741,3050.3,3049.4,0.3441]
[1764211999982,0.4741,3050.3,3049.5,1.05255235]
[1764212000301,0.451,3049.6,3049.4,0.001]
[1764212000645,0.1808,3050.4,3049.4,0.001]
[1764212000944,0.4741,3050.1,3049.4,0.001]
[1764212003684,0.6549,3050.4,3049.4,0.001]
[1764212003887,0.451,3049.5,3049.4,0.001]
[1764212004092,0.451,3049.1,3047.4,0.3451]
[1764212004295,0.451,3049.1,3047.6,3.51475285]
[1764212004588,0.4741,3049.0,3047.6,3.51475285]
[1764212004880,0.4741,3049.0,3047.7,0.3451]
[1764212005105,0.1808,3048.9,3047.7,0.3451]
[1764212005250,0.1808,3048.9,3047.8,0.35147529]
[1764212005452,0.6549,3048.9,3047.8,0.35147529]
[1764212006057,0.6549,3048.9,3047.9,6.56189506]
[1764212006281,0.4741,3048.8,3047.9,6.56189506]
[1764212007072,0.4741,3048.8,3047.9,9.84284259]
[1764212007272,0.4741,3048.8,3048.0,1.04093179]
[1764212007473,0.1808,3048.9,3048.0,4.74693535]
[1764212007679,0.6549,3048.9,3048.0,1.04093179]
[1764212007898,0.6549,3048.9,3047.9,6.56189506]
[1764212008209,0.4741,3048.8,3047.9,6.56189506]
[1764212009728,0.4741,3048.8,3045.5,3.28345612]
[1764212009729,0.405504,3047.9,3045.5,3.28345612]
[1764212009874,0.0418,3047.6,3045.6,0.3451]
[1764212010081,0.1,3047.3,3045.6,0.3451]
[1764212010315,3.28170123,3047.2,3045.7,6.56663492]
[1764212010492,3.75580123,3047.2,3045.8,1.01950937]
[1764212010694,0.4741,3047.1,3045.9,3.57690356]
[1764212010892,0.4741,3047.1,3045.9,0.216]
[1764212011222,0.5159,3047.6,3046.0,0.3451]
[1764212011434,0.4741,3047.5,3046.2,3.36090356]
[1764212011613,0.4741,3047.5,3046.3,0.33609036]
[1764212011812,0.4741,3047.5,3046.3,0.68119036]
[1764212012200,0.1808,3047.8,3047.0,3.36090356]
[1764212012397,0.1808,3048.1,3047.1,0.3951]
[1764212012881,0.1808,3048.5,3047.8,3.36090356]
[1764212013084,0.1808,3048.5,3047.8,0.33609036]
[1764212013319,0.1808,3048.5,3047.7,0.216]
[1764212013481,0.1808,3048.5,3047.4,3.36090356]
[1764212013883,0.6549,3048.5,3047.5,0.216]
[1764212014086,0.6549,3048.5,3047.6,0.216]
[1764212014315,0.6549,3048.5,3047.7,6.56232568]
[1764212014496,0.6549,3048.5,3047.8,0.65623257]
[1764212015403,0.1808,3048.9,3048.2,3.36090356]
[1764212015800,0.1808,3048.9,3048.3,0.1002]
[1764212016220,0.4741,3049.2,3048.4,6.56081878]
[1764212016512,0.4741,3049.2,3048.4,7.94716686]
[1764212016716,0.4741,3049.2,3048.4,11.22757625]
[1764212016915,0.4741,3049.2,3048.4,7.94716686]
[1764212017120,0.4741,3049.2,3046.4,6.61512604]
[1764212017121,0.405504,3048.4,3046.4,6.61512604]
[1764212017297,0.053,3047.9,3046.4,6.61512604]
[1764212017651,0.053,3047.9,3046.5,0.72559411]
[1764212017652,0.4741,3047.8,3046.5,0.72559411]
[1764212018329,0.053,3047.9,3046.7,13.1289592]
[1764212018620,0.053,3047.9,3047.0,3.36090356]
[1764212018993,0.053,3047.9,3047.1,0.1002]
[1764212019806,0.19,3047.9,3047.1,0.1002]
[1764212020204,0.19,3047.9,3047.2,6.56340246]
[1764212020619,0.4691,3048.3,3047.2,9.84510369]
[1764212020798,0.4691,3048.3,3047.3,0.99453037]
[1764212021118,0.4691,3048.3,3047.4,0.217]
[1764212021324,0.1808,3048.5,3047.4,3.92300356]
[1764212021515,0.1808,3048.5,3047.5,0.3451]
[1764212021915,0.6591,3048.7,3047.5,0.3451]
[1764212022107,0.19,3048.7,3047.6,3.36090356]
[1764212022302,0.19,3048.7,3047.8,9.84316554]
[1764212022525,0.19,3048.7,3047.9,0.217]
[1764212023124,0.6591,3048.7,3047.9,0.217]
[1764212023536,0.4691,3048.6,3047.9,0.217]
[1764212023722,0.4854,3048.0,3046.5,6.56590542]
[1764212023921,0.75557077,3047.9,3046.6,0.65659054]
[1764212024105,0.30357077,3047.8,3046.6,0.65659054]
[1764212024305,0.77267077,3047.8,3046.7,6.5644796]
[1764212024508,0.30357077,3047.7,3046.7,6.5644796]
[1764212024827,0.30357077,3047.7,3046.7,7.30838661]
[1764212024828,0.77267077,3047.7,3046.7,7.30838661]
[1764212025016,0.4691,3047.7,3046.7,7.30838661]
[1764212025217,0.4691,3047.6,3046.7,7.30838661]
[1764212027103,0.4691,3047.6,3046.7,4.02614681]
[1764212027307,0.4691,3047.6,3046.5,3.50041795]
[1764212027510,0.4691,3047.6,3046.5,6.78287322]
[1764212027905,0.4691,3047.6,3046.5,3.28341795]
[1764212027906,0.30389015,3047.5,3046.5,3.28341795]
[1764212028407,0.77299015,3047.4,3046.5,3.28341795]
[1764212028616,0.30389015,3047.3,3046.5,3.28341795]
[1764212028814,0.30389015,3047.3,3046.6,0.3500418]
[1764212029237,0.30389015,3047.3,3046.7,3.2822398]
[1764212029537,0.30389015,3047.3,3046.7,6.5644796]
[1764212029725,0.30389015,3047.2,3046.7,6.5644796]
[1764212030038,0.4691,3047.4,3046.7,6.5644796]
[1764212030219,0.19,3046.8,3046.5,0.001]
[1764212030421,0.30402628,3047.2,3046.5,6.56590503]
[1764212030642,0.4691,3047.3,3046.6,0.6565905]
[1764212030838,0.3041152,3047.2,3046.6,0.6565905]
[1764212031040,0.4691,3047.3,3046.6,0.6565905]
[1764212031240,0.30411677,3047.2,3046.7,3.2822398]
[1764212031537,0.4691,3047.3,3046.7,3.2822398]
[1764212031737,0.30426296,3047.2,3046.7,6.5644796]
[1764212031949,0.4691,3047.3,3046.7,6.5644796]
[1764212032247,0.30419125,3047.2,3046.7,3.2822398]
[1764212032538,0.77329125,3047.1,3046.7,3.2822398]
[1764212032841,0.4691,3047.1,3046.7,6.5644796]
[1764212033221,0.4691,3047.5,3046.7,7.28668661]
[1764212033440,0.30467377,3047.4,3046.7,7.28668661]
[1764212033643,0.30467377,3047.3,3046.7,7.28668661]
[1764212033941,0.30467377,3047.2,3046.7,7.28668661]
[1764212034240,0.4691,3047.5,3046.8,0.72866866]
[1764212034445,0.30462016,3047.4,3046.8,0.72866866]
[1764212034748,0.6591,3047.9,3046.8,1.07376866]
[1764212035045,0.30464908,3047.8,3046.8,1.07376866]
[1764212035219,0.30464908,3047.7,3046.9,11.46209751]
[1764212035419,0.30464908,3047.6,3046.9,11.46209751]
[1764212035620,0.30464908,3047.5,3047.0,3.806]
[1764212035820,0.30464908,3047.4,3047.0,3.806]
[1764212036032,0.4691,3047.8,3047.0,3.806]
[1764212036033,0.4691,3047.7,3047.0,3.806]
[1764212036244,0.30470547,3047.6,3047.0,3.806]
[1764212036453,0.30470547,3047.5,3047.0,3.806]
[1764212036626,0.30470547,3047.4,3047.1,0.1002]
[1764212036831,0.19,3047.9,3047.1,3.9062]
[1764212037152,0.30474161,3047.8,3047.3,6.56318708]
[1764212037355,0.30474161,3047.7,3047.4,1.03691871]
[1764212037543,0.4691,3047.8,3047.3,3.28159354]
[1764212037849,0.77392935,3047.7,3047.3,3.28159354]
[1764212038054,0.30482935,3047.6,3047.3,6.56318708]
[1764212038250,0.19,3047.9,3047.3,6.56318708]
[1764212038451,0.30487641,3047.8,3047.3,6.56318708]
[1764212038655,0.4691,3048.4,3047.4,1.03691871]
[1764212038844,0.30490115,3048.3,3047.5,3.806]
[1764212039026,0.30490115,3048.2,3047.5,3.806]
[1764212039226,0.30490115,3048.1,3047.6,3.2812705]
[1764212039455,0.30490115,3048.0,3047.6,10.368541]
[1764212039657,0.30490115,3047.9,3047.6,7.5993951]
[1764212039967,0.4691,3048.3,3047.6,7.5993951]
[1764212039968,0.4691,3048.6,3047.6,10.8806656]
[1764212040190,0.30489199,3048.5,3047.8,0.3451]
[1764212040453,0.30489199,3048.5,3047.7,3.806]
[1764212040454,0.30489199,3048.4,3047.7,3.806]
[1764212040653,0.406,3048.7,3047.7,4.96813951]
[1764212040654,0.30489199,3048.3,3047.7,4.96813951]
[1764212040849,0.30489199,3048.2,3047.7,4.96813951]
[1764212041048,0.4691,3048.5,3047.7,4.96813951]
[1764212041244,0.30504756,3048.4,3047.7,4.96813951]
[1764212041454,0.30504756,3048.3,3047.8,7.71517841]
[1764212041667,0.30504756,3048.2,3047.8,7.71517841]
[1764212041834,0.406,3048.7,3047.8,7.71517841]
[1764212042030,0.3051048,3048.6,3047.9,3.806]
[1764212042227,0.3051048,3048.5,3048.0,1.15211784]
[1764212042423,0.406,3048.7,3048.0,1.15211784]
[1764212042424,0.3051048,3048.4,3048.0,1.15211784]
[1764212042628,0.4854,3048.1,3047.9,3.806]
[1764212043427,0.4691,3048.5,3048.0,3.28083989]
[1764212043655,0.3051828,3048.4,3048.0,6.56167978]
[1764212043856,0.4691,3048.5,3048.0,6.56167978]
[1764212043857,0.3051828,3048.3,3048.0,6.56167978]
[1764212044069,0.4691,3048.5,3048.0,6.56167978]
[1764212044268,0.30518277,3048.4,3048.0,6.56167978]
[1764212044480,0.30518277,3048.3,3048.1,0.05]
[1764212044682,0.19,3048.7,3048.1,0.05]
[1764212044865,0.77430098,3048.6,3048.0,3.93700787]
[1764212045034,0.30520098,3048.5,3048.0,3.28083989]
[1764212045242,0.30520098,3048.4,3048.0,3.28083989]
[1764212045453,0.4691,3048.6,3047.9,6.56180443]
[1764212045747,0.30519503,3048.5,3047.9,6.56180443]
[1764212045947,0.30519503,3048.4,3047.9,6.56180443]
[1764212046149,0.4691,3048.6,3047.9,6.56180443]
[1764212046465,0.30528141,3048.5,3047.9,6.56180443]
[1764212046679,0.30528141,3048.4,3047.9,7.22298487]
[1764212046969,0.30528141,3048.3,3047.9,7.22298487]
[1764212047266,0.4691,3048.6,3047.9,7.22298487]
[1764212047472,3.49777423,3049.0,3047.9,7.22298487]
[1764212047473,0.30539465,3048.5,3047.9,7.22298487]
[1764212047674,0.4691,3048.7,3047.9,7.22298487]
[1764212047965,0.30540797,3048.6,3048.0,0.72729849]
[1764212048166,0.6591,3048.8,3048.0,0.72729849]
[1764212048341,0.77445581,3048.7,3048.0,0.72729849]
[1764212048542,0.30535581,3048.6,3047.9,6.77780443]
[1764212048868,0.30535581,3048.5,3047.9,6.77780443]
[1764212049096,0.4691,3048.6,3047.9,6.56180443]
[1764212049292,0.30531874,3048.5,3047.9,6.56180443]
[1764212049598,0.19,3048.8,3047.9,6.56180443]
[1764212049750,0.4749,3048.6,3047.9,6.56180443]
[1764212049949,0.4749,3048.6,3047.9,3.2808569]
[1764212050173,0.4749,3048.6,3047.9,6.56180443]
[1764212051582,0.4749,3048.6,3047.8,6.56211036]
[1764212051779,0.4749,3048.6,3047.8,7.56804244]
[1764212052184,0.4749,3048.6,3047.8,3.28105518]
[1764212052483,0.30518667,3048.5,3047.8,3.28105518]
[1764212052895,0.4891,3048.4,3047.8,6.56211036]
[1764212053062,0.4891,3048.4,3047.8,3.28105518]
[1764212053264,0.6761,3047.9,3047.8,3.28105518]
[1764212053471,0.6761,3047.9,3047.2,6.56340246]
[1764212053776,0.216,3048.5,3047.2,10.8612482]
[1764212053966,0.79431241,3048.4,3047.2,9.84510369]
[1764212054158,0.30521241,3048.3,3047.2,9.84510369]
[1764212054485,0.30521241,3048.2,3047.2,10.19020369]
[1764212054851,0.30521241,3048.1,3047.1,3.28179152]
[1764212055053,0.30521241,3048.0,3047.2,0.002]
[1764212055377,0.4891,3048.1,3047.2,0.002]
[1764212055574,0.196,3047.9,3047.2,0.002]
[1764212056081,0.4891,3047.8,3047.2,0.002]
[1764212056385,0.4801,3047.3,3047.2,0.002]
[1764212056589,0.9692,3047.3,3047.2,0.002]
[1764212058108,1.27431116,3047.3,3047.2,0.002]
[1764212059487,0.30511116,3047.3,3047.2,0.002]
[1764212059656,0.4891,3047.6,3047.2,0.002]
[1764212060059,0.4801,3047.3,3047.2,0.002]
[1764212060298,1.00021737,3047.3,3047.2,0.002]
[1764212060482,1.58931737,3047.3,3047.2,0.002]
[1764212061299,1.27431737,3047.3,3047.2,0.002]
[1764212061586,5.59650502,3047.3,3047.2,0.002]
[1764212061793,5.49650502,3047.3,3047.1,0.001]
[1764212061958,1.48321737,3047.2,3047.1,0.001]
[1764212062670,1.26821737,3047.2,3047.1,0.001]
[1764212062882,1.58321737,3047.2,3047.1,0.001]
[1764212063479,2.30881148,3047.2,3047.1,0.001]
[1764212063680,5.59051271,3047.2,3047.1,0.001]
[1764212065610,5.37551271,3047.2,3047.1,0.001]
[1764212065794,5.59051271,3047.2,3047.1,0.001]
[1764212066308,5.37551271,3047.2,3047.1,0.001]
[1764212066518,5.59051271,3047.2,3047.1,0.001]
[1764212068583,5.99601671,3047.2,3047.1,0.001]
[1764212071012,0.505504,3046.9,3046.8,0.001]
[1764212071212,1.48662137,3046.9,3046.8,0.001]
[1764212071390,1.97572137,3046.9,3046.8,0.001]
[1764212071590,0.405504,3046.8,3045.2,0.0982]
[1764212071790,0.1,3046.1,3045.2,0.0982]
[1764212071993,0.1,3046.1,3043.7,0.1002]
[1764212071994,0.405504,3045.2,3043.7,0.1002]
[1764212072217,3.17909814,3044.3,3043.1,0.3451]
[1764212072531,3.17909814,3044.3,3043.2,0.36313307]
[1764212072532,0.620504,3044.2,3043.2,0.36313307]
[1764212072691,1.305604,3044.2,3042.5,0.3451]
[1764212072898,0.1,3044.0,3042.5,0.3451]
[1764212073098,0.1,3044.0,3042.8,3.28640887]
[1764212073311,0.4891,3043.9,3042.7,3.63156652]
[1764212073522,0.5891,3043.9,3042.9,3.3831342]
[1764212073725,0.5891,3043.9,3043.0,0.33831342]
[1764212073896,3.87441183,3043.9,3043.0,0.33831342]
[1764212074096,0.4891,3043.9,3042.9,3.38311979]
[1764212074317,0.215,3043.8,3042.9,3.38311979]
[1764212074517,0.215,3043.7,3043.0,0.3451]
[1764212075232,0.215,3043.7,3042.9,3.38311979]
[1764212075533,0.215,3043.6,3042.9,7.01455848]
[1764212075719,0.215,3043.5,3043.0,0.68341198]
[1764212075929,0.196,3044.2,3043.1,6.5722454]
[1764212075930,0.215,3043.6,3043.1,6.5722454]
[1764212076100,0.215,3043.7,3043.4,0.3451]
[1764212076431,0.196,3044.2,3043.5,0.3451]
[1764212076616,0.215,3043.8,3043.5,0.3451]
[1764212076797,0.196,3044.4,3043.5,0.3451]
[1764212077002,0.215,3044.3,3043.4,0.3451]
[1764212077395,0.4891,3044.2,3043.0,0.33831198]
[1764212077596,0.1,3044.1,3043.0,3.28622009]
[1764212077811,0.1,3044.1,3043.0,6.57245078]
[1764212078010,3.28515111,3044.0,3043.0,3.28622009]
[1764212078318,0.5891,3044.1,3043.1,0.66703542]
[1764212078643,3.87416871,3044.1,3043.1,0.66703542]
[1764212078952,7.15923742,3044.1,3043.1,0.66703542]
[1764212079108,1.31469411,3044.0,3042.9,3.38411648]
[1764212079453,0.215,3043.9,3042.9,3.72921648]
[1764212079936,0.215,3043.9,3042.9,7.01555517]
[1764212081015,0.215,3043.9,3043.0,0.3451]
[1764212081233,0.196,3044.4,3043.8,0.3451]
[1764212081440,0.215,3044.3,3043.8,0.3451]
[1764212081858,0.215,3044.3,3042.9,13.24313255]
[1764212081859,0.4883,3043.9,3042.9,0.0978]
[1764212082010,0.215,3043.8,3042.9,0.0978]
[1764212082214,0.215,3043.8,3042.9,3.72923689]
[1764212082437,0.215,3043.8,3043.0,0.37292369]
[1764212082820,0.72559411,3044.0,3043.0,0.37292369]
[1764212083020,4.4827326,3044.2,3043.0,0.71802369]
[1764212083226,0.315,3044.1,3043.0,0.71802369]
[1764212083443,0.215,3044.0,3043.0,0.37292369]
[1764212083645,0.215,3044.0,3043.1,1.04943993]
[1764212083846,0.215,3043.9,3043.1,1.04943993]
[1764212084054,0.215,3043.9,3043.2,3.28601472]
[1764212084252,3.50029247,3043.9,3043.1,4.3355385]
[1764212084439,0.4722,3044.2,3043.2,0.3451]
[1764212084749,0.215,3044.1,3043.3,0.76216612]
[1764212085119,0.215,3044.1,3043.4,0.3451]
[1764212085375,0.72559411,3044.4,3043.4,0.3451]
[1764212085672,0.215,3044.3,3043.3,0.76216612]
[1764212086265,0.215,3044.3,3043.5,3.28569081]
[1764212086462,0.72559411,3044.5,3043.6,0.69165895]
[1764212086646,0.215,3044.2,3043.6,0.69165895]
[1764212087065,0.4883,3043.7,3042.9,0.0978]
[1764212087271,0.4647,3043.6,3042.9,0.001]